[Event "***Titled Tuesday 3|2 Blitz"]
[Site "Chess.com"]
[Date "2017.02.07"]
[Round "4"]
[White "joppie2"]
[Black "AdrianaNikolova"]
[Result "1-0"]
[WhiteElo "2530"]
[BlackElo "2319"]
[TimeControl "180+2"]
[EndTime "14:00:02 PST"]
[Termination "joppie2 won by resignation"]

1. e4 {[%clk 0:03:02]} 1... c5 {[%clk 0:02:52.8]} 2. Nf3 {[%clk 0:03:02.4]} 2...
d6 {[%clk 0:02:51.9]} 3. d4 {[%clk 0:03:03.3]} 3... cxd4 {[%clk 0:02:53.8]} 4.
Nxd4 {[%clk 0:03:05.2]} 4... Nf6 {[%clk 0:02:49.4]} 5. Nc3 {[%clk 0:03:06.8]}
5... a6 {[%clk 0:02:50]} 6. Bg5 {[%clk 0:03:07.3]} 6... e6 {[%clk 0:02:50.4]} 7.
f4 {[%clk 0:03:05.3]} 7... Nc6 {[%clk 0:02:49.8]} 8. Nxc6 {[%clk 0:02:59.8]}
8... bxc6 {[%clk 0:02:49.4]} 9. e5 {[%clk 0:03:01.7]} 9... h6 {[%clk 0:02:42.4]}
10. Bh4 {[%clk 0:03:01.8]} 10... g5 {[%clk 0:02:36.5]} 11. fxg5 {[%clk
0:03:03.3]} 11... Nd5 {[%clk 0:02:36.1]} 12. Ne4 {[%clk 0:03:05.2]} 12... dxe5
{[%clk 0:02:31.3]} 13. Bd3 {[%clk 0:02:32.3]} 13... Be7 {[%clk 0:02:28]} 14. Qd2
{[%clk 0:01:41.3]} 14... Nf4 {[%clk 0:02:12.8]} 15. Nf6+ {[%clk 0:01:37.4]}
15... Bxf6 {[%clk 0:02:04.7]} 16. gxf6 {[%clk 0:01:38.5]} 16... Qd4 {[%clk
0:01:41.7]} 17. O-O-O {[%clk 0:01:35.4]} 17... Rb8 {[%clk 0:01:36.7]} 18. c3
{[%clk 0:01:32.4]} 18... Qxd3 {[%clk 0:01:18.7]} 19. Qxd3 {[%clk 0:01:34.3]}
19... Nxd3+ {[%clk 0:01:19.9]} 20. Rxd3 {[%clk 0:01:35.3]} 20... Bb7 {[%clk
0:00:44.6]} 21. Rhd1 {[%clk 0:01:34.2]} 21... c5 {[%clk 0:00:44.8]} 22. c4
{[%clk 0:01:29.5]} 22... Bxg2 {[%clk 0:00:35.8]} 23. Rd7 {[%clk 0:01:29.5]}
23... Bc6 {[%clk 0:00:16.2]} 24. Re7+ {[%clk 0:01:29.2]} 24... Kf8 {[%clk
0:00:16.4]} 25. Bg3 {[%clk 0:01:30.8]} 25... Be8 {[%clk 0:00:15.4]} 26. Bxe5
{[%clk 0:01:31.5]} 26... Rc8 {[%clk 0:00:16.2]} 27. Bd6 {[%clk 0:01:33]} 27...
Rc6 {[%clk 0:00:08.2]} 28. Bxc5 {[%clk 0:01:19.2]} 28... Rxc5 {[%clk 0:00:07.4]}
29. Rd8 {[%clk 0:01:20.1]} 29... Rxc4+ {[%clk 0:00:08.2]} 30. Kb1 {[%clk
0:01:21.6]} 30... Kg8 {[%clk 0:00:07.1]} 31. Rexe8+ {[%clk 0:01:22.8]} 31... Kh7
{[%clk 0:00:08.8]} 32. Rxh8+ {[%clk 0:01:24.7]} 32... Kg6 {[%clk 0:00:10.7]} 33.
Rdg8+ {[%clk 0:01:25.3]} 33... Kxf6 {[%clk 0:00:12]} 34. Rxh6+ {[%clk
0:01:26.5]} 34... Ke5 {[%clk 0:00:13.5]} 35. Rg1 {[%clk 0:01:24.8]} 35... Re4
{[%clk 0:00:12.8]} 36. h4 {[%clk 0:01:25.5]} 36... f5 {[%clk 0:00:13.8]} 37. h5
{[%clk 0:01:27.1]} 37... Kf4 {[%clk 0:00:13.7]} 38. Rh1 {[%clk 0:01:24.4]} 38...
Re2 {[%clk 0:00:13.8]} 39. Rg6 {[%clk 0:01:25.7]} 39... e5 {[%clk 0:00:11.1]}
40. h6 {[%clk 0:01:25.4]} 40... e4 {[%clk 0:00:13]} 41. h7 {[%clk 0:01:26.6]}
41... e3 {[%clk 0:00:14.1]} 42. h8=R {[%clk 0:01:19.6]} 42... Rf2 {[%clk
0:00:16]} 43. R8h4+ {[%clk 0:01:19.6]} 43... Ke5 {[%clk 0:00:15]} 44. Rg8 {[%clk
0:01:19.5]} 44... f4 {[%clk 0:00:15]} 45. Re8+ {[%clk 0:01:20.1]} 45... Kf5
{[%clk 0:00:13.9]} 46. Rhh8 {[%clk 0:01:19.1]} 46... Kg4 {[%clk 0:00:12.7]} 47.
a4 {[%clk 0:01:13.5]} 47... e2 {[%clk 0:00:10.5]} 48. Re1 {[%clk 0:01:13.8]}
48... f3 {[%clk 0:00:11.1]} 49. Re4+ {[%clk 0:01:05.5]} 49... Kg3 {[%clk
0:00:10.7]} 50. Rhe8 {[%clk 0:01:07.1]} 50... Rh2 {[%clk 0:00:09.4]} 51. R4xe2
{[%clk 0:01:06.2]} 51... fxe2 {[%clk 0:00:10.3]} 52. R8xe2 {[%clk 0:01:07.6]}
52... Rh4 {[%clk 0:00:11.1]} 53. b3 {[%clk 0:01:08]} 53... Rb4 {[%clk
0:00:11.4]} 54. Kb2 {[%clk 0:01:09.1]} 54... Kf3 {[%clk 0:00:12.1]} 55. Re6
{[%clk 0:01:10.4]} 55... Kf2 {[%clk 0:00:10.2]} 56. Rc1 {[%clk 0:01:10]} 56...
a5 {[%clk 0:00:05.8]} 57. Re5 {[%clk 0:01:10.3]} 1-0

[Event "***Titled Tuesday 3|2 Blitz"]
[Site "Chess.com"]
[Date "2017.02.07"]
[Round "4"]
[White "Durarbayli"]
[Black "Konavets"]
[Result "1-0"]
[WhiteElo "2619"]
[BlackElo "2516"]
[TimeControl "180+2"]
[EndTime "14:00:06 PST"]
[Termination "Durarbayli won on time"]

1. e4 {[%clk 0:03:02]} 1... c5 {[%clk 0:03:00.5]} 2. Nf3 {[%clk 0:03:01.6]} 2...
d6 {[%clk 0:03:01.1]} 3. d4 {[%clk 0:03:02.1]} 3... cxd4 {[%clk 0:03:03]} 4.
Nxd4 {[%clk 0:03:04]} 4... Nf6 {[%clk 0:03:04.6]} 5. Nc3 {[%clk 0:03:05.2]} 5...
a6 {[%clk 0:03:05.9]} 6. Bg5 {[%clk 0:03:05.6]} 6... e6 {[%clk 0:03:06.3]} 7. f4
{[%clk 0:03:06.5]} 7... Qb6 {[%clk 0:03:07.5]} 8. a3 {[%clk 0:03:03.9]} 8... Be7
{[%clk 0:03:06.9]} 9. Nb3 {[%clk 0:02:53.4]} 9... h6 {[%clk 0:03:05.4]} 10. Bxf6
{[%clk 0:02:53.9]} 10... Bxf6 {[%clk 0:03:06.2]} 11. Qf3 {[%clk 0:02:51.8]}
11... Nc6 {[%clk 0:02:59.3]} 12. O-O-O {[%clk 0:02:51.3]} 12... Be7 {[%clk
0:02:57.1]} 13. g3 {[%clk 0:02:43.9]} 13... Qc7 {[%clk 0:02:57.8]} 14. Bg2
{[%clk 0:02:43.2]} 14... b5 {[%clk 0:02:58.5]} 15. Rhe1 {[%clk 0:02:34.5]} 15...
O-O {[%clk 0:02:51.4]} 16. e5 {[%clk 0:02:14.7]} 16... d5 {[%clk 0:02:30.1]} 17.
h4 {[%clk 0:01:54.6]} 17... Rb8 {[%clk 0:02:23.5]} 18. g4 {[%clk 0:01:48.6]}
18... b4 {[%clk 0:02:12.2]} 19. axb4 {[%clk 0:01:47]} 19... Rxb4 {[%clk
0:02:14.1]} 20. g5 {[%clk 0:01:44.8]} 20... h5 {[%clk 0:02:14.7]} 21. Qxh5
{[%clk 0:01:31]} 21... Rxf4 {[%clk 0:02:14.3]} 22. Bxd5 {[%clk 0:01:26.3]} 22...
Nxe5 {[%clk 0:01:55.9]} 23. Qe2 {[%clk 0:00:59.2]} 23... Ng6 {[%clk 0:01:18.9]}
24. h5 {[%clk 0:00:59.6]} 24... Bxg5 {[%clk 0:01:20.1]} 25. Kb1 {[%clk
0:01:00.5]} 25... Ne7 {[%clk 0:01:21.4]} 26. Be4 {[%clk 0:00:55.3]} 26... a5
{[%clk 0:01:08.1]} 27. Nd4 {[%clk 0:00:55.9]} 27... a4 {[%clk 0:01:01.5]} 28.
Nxa4 {[%clk 0:00:45.8]} 28... Bd7 {[%clk 0:00:53.4]} 29. Nc3 {[%clk 0:00:46.3]}
29... Rb8 {[%clk 0:00:53.9]} 30. Nb3 {[%clk 0:00:45]} 30... e5 {[%clk
0:00:35.7]} 31. Rg1 {[%clk 0:00:35.9]} 31... Bh6 {[%clk 0:00:33.7]} 32. Nd5
{[%clk 0:00:17.6]} 32... Nxd5 {[%clk 0:00:32.3]} 33. Bxd5 {[%clk 0:00:19.5]}
33... Bf5 {[%clk 0:00:20.6]} 34. Rg3 {[%clk 0:00:20.2]} 34... Qa7 {[%clk
0:00:19]} 35. Qxe5 {[%clk 0:00:19.4]} 35... Rf2 {[%clk 0:00:17.4]} 36. Rc3
{[%clk 0:00:16.9]} 36... Rf8 {[%clk 0:00:11.6]} 37. Rc7 {[%clk 0:00:16.7]} 37...
Qb8 {[%clk 0:00:08.2]} 38. Nd4 {[%clk 0:00:12.8]} 38... Bh7 {[%clk 0:00:06.7]}
39. Qe7 {[%clk 0:00:08]} 39... Bg5 {[%clk 0:00:06.7]} 40. Qd7 {[%clk 0:00:08.7]}
40... Bf6 {[%clk 0:00:06]} 41. Rb7 {[%clk 0:00:08]} 41... Qe5 {[%clk 0:00:06.5]}
42. Bxf7+ {[%clk 0:00:09.1]} 42... Kh8 {[%clk 0:00:06.8]} 43. Bg6 {[%clk
0:00:10.4]} 43... Bg8 {[%clk 0:00:05.7]} 44. h6 {[%clk 0:00:11.6]} 44... Rg2
{[%clk 0:00:04.4]} 45. hxg7+ {[%clk 0:00:12.4]} 45... Bxg7 {[%clk 0:00:06.3]}
46. Rh1+ {[%clk 0:00:13.8]} 1-0

[Event "***Titled Tuesday 3|2 Blitz"]
[Site "Chess.com"]
[Date "2017.02.07"]
[Round "4"]
[White "LyonBeast"]
[Black "Astaneh"]
[Result "1-0"]
[WhiteElo "2739"]
[BlackElo "2488"]
[TimeControl "180+2"]
[EndTime "14:00:28 PST"]
[Termination "LyonBeast won on time"]

1. d4 {[%clk 0:03:02]} 1... Nf6 {[%clk 0:02:56.8]} 2. Nf3 {[%clk 0:03:01.8]}
2... g6 {[%clk 0:02:55.8]} 3. g3 {[%clk 0:03:01.5]} 3... Bg7 {[%clk 0:02:56.7]}
4. Bg2 {[%clk 0:03:00.2]} 4... O-O {[%clk 0:02:56.3]} 5. O-O {[%clk 0:03:00.4]}
5... d5 {[%clk 0:02:57.5]} 6. c4 {[%clk 0:02:57.5]} 6... c6 {[%clk 0:02:53.9]}
7. Qb3 {[%clk 0:02:54]} 7... a5 {[%clk 0:02:36.2]} 8. cxd5 {[%clk 0:02:50.3]}
8... Nxd5 {[%clk 0:02:29.4]} 9. Nc3 {[%clk 0:02:49.4]} 9... Nb4 {[%clk
0:02:24.3]} 10. a3 {[%clk 0:02:46]} 10... Be6 {[%clk 0:02:24.9]} 11. Qd1 {[%clk
0:02:34.6]} 11... Nd5 {[%clk 0:02:17.5]} 12. Na4 {[%clk 0:02:29.8]} 12... Nd7
{[%clk 0:02:13.7]} 13. Ng5 {[%clk 0:02:26.3]} 13... Nc7 {[%clk 0:02:09.6]} 14.
Nxe6 {[%clk 0:02:17.6]} 14... Nxe6 {[%clk 0:02:11.5]} 15. e3 {[%clk 0:02:17.2]}
15... Nc7 {[%clk 0:01:54.4]} 16. Qb3 {[%clk 0:02:12.6]} 16... Rb8 {[%clk
0:01:50.6]} 17. Rd1 {[%clk 0:02:08.2]} 17... e6 {[%clk 0:01:43.3]} 18. Bd2
{[%clk 0:02:07.1]} 18... b5 {[%clk 0:01:39]} 19. Nc3 {[%clk 0:02:07.4]} 19...
Nd5 {[%clk 0:01:32.7]} 20. Rac1 {[%clk 0:02:05]} 20... a4 {[%clk 0:01:28.3]} 21.
Qc2 {[%clk 0:02:04.8]} 21... N7b6 {[%clk 0:01:26.1]} 22. Ne4 {[%clk 0:01:38.1]}
22... Nc4 {[%clk 0:01:24]} 23. Bf1 {[%clk 0:01:37.5]} 23... Nxd2 {[%clk
0:01:17.1]} 24. Qxd2 {[%clk 0:01:39.4]} 24... Qb6 {[%clk 0:01:06.9]} 25. Nc5
{[%clk 0:01:39.9]} 25... Rfd8 {[%clk 0:01:05.9]} 26. Nd3 {[%clk 0:01:40.7]}
26... Ne7 {[%clk 0:01:01.8]} 27. Qc3 {[%clk 0:01:33.6]} 27... Rd6 {[%clk
0:00:57.5]} 28. Bg2 {[%clk 0:01:34]} 28... Rbd8 {[%clk 0:00:56.9]} 29. Re1
{[%clk 0:01:28.1]} 29... h5 {[%clk 0:00:53.9]} 30. h4 {[%clk 0:01:26.6]} 30...
Qb8 {[%clk 0:00:41.2]} 31. Re2 {[%clk 0:01:20.3]} 31... Nf5 {[%clk 0:00:41.6]}
32. Nb4 {[%clk 0:01:11.1]} 32... Nxg3 {[%clk 0:00:23.7]} 33. fxg3 {[%clk
0:01:07.3]} 33... Rxd4 {[%clk 0:00:25]} 34. Qe1 {[%clk 0:00:42.1]} 34... Rxb4
{[%clk 0:00:21.7]} 35. axb4 {[%clk 0:00:40.3]} 35... Be5 {[%clk 0:00:16.1]} 36.
Kh2 {[%clk 0:00:41]} 36... g5 {[%clk 0:00:14.1]} 37. hxg5 {[%clk 0:00:39.5]}
37... h4 {[%clk 0:00:16]} 38. Kh1 {[%clk 0:00:36.5]} 38... hxg3 {[%clk 0:00:16]}
39. Rd2 {[%clk 0:00:30.8]} 39... Kg7 {[%clk 0:00:16]} 40. Rxd8 {[%clk
0:00:28.8]} 40... Qxd8 {[%clk 0:00:17.9]} 41. Qe2 {[%clk 0:00:24]} 41... Qxg5
{[%clk 0:00:16.1]} 42. Kg1 {[%clk 0:00:22.7]} 42... Qh4 {[%clk 0:00:17]} 43.
Rxc6 {[%clk 0:00:21.4]} 43... Qxb4 {[%clk 0:00:17.6]} 44. Rc2 {[%clk 0:00:22.2]}
44... Qh4 {[%clk 0:00:10.8]} 45. Bc6 {[%clk 0:00:20.9]} 45... b4 {[%clk
0:00:10.2]} 46. Bxa4 {[%clk 0:00:20.5]} 46... Qe4 {[%clk 0:00:10.8]} 47. Bb3
{[%clk 0:00:20.5]} 47... Kf8 {[%clk 0:00:06.9]} 48. Rc4 {[%clk 0:00:20.8]} 48...
Qb1+ {[%clk 0:00:06.9]} 49. Kg2 {[%clk 0:00:15.8]} 49... Bd6 {[%clk 0:00:03.7]}
50. Qd2 {[%clk 0:00:14.8]} 50... Ke7 {[%clk 0:00:02.8]} 51. Rd4 {[%clk
0:00:15.8]} 1-0

[Event "***Titled Tuesday 3|2 Blitz"]
[Site "Chess.com"]
[Date "2017.02.07"]
[Round "4"]
[White "latigre"]
[Black "HouseOfDurin"]
[Result "0-1"]
[WhiteElo "1749"]
[BlackElo "1899"]
[TimeControl "180+2"]
[EndTime "14:00:38 PST"]
[Termination "HouseOfDurin won by checkmate"]

1. e4 {[%clk 0:03:02]} 1... c5 {[%clk 0:02:59.7]} 2. Nc3 {[%clk 0:02:59]} 2...
Nc6 {[%clk 0:03:00.1]} 3. f4 {[%clk 0:03:00.2]} 3... e5 {[%clk 0:02:59.6]} 4. f5
{[%clk 0:02:50.3]} 4... g6 {[%clk 0:02:39.7]} 5. fxg6 {[%clk 0:02:41.1]} 5...
hxg6 {[%clk 0:02:40.1]} 6. Nf3 {[%clk 0:02:41.6]} 6... Bg7 {[%clk 0:02:19.7]} 7.
Bc4 {[%clk 0:02:41.5]} 7... d6 {[%clk 0:02:05.2]} 8. O-O {[%clk 0:01:54.2]} 8...
Be6 {[%clk 0:01:35]} 9. Bxe6 {[%clk 0:01:32.9]} 9... fxe6 {[%clk 0:01:36.9]} 10.
d3 {[%clk 0:01:33.4]} 10... Qe7 {[%clk 0:01:15.3]} 11. Qe1 {[%clk 0:01:21.6]}
11... O-O-O {[%clk 0:01:14.5]} 12. Qg3 {[%clk 0:01:17.2]} 12... Nd4 {[%clk
0:00:55.2]} 13. Bg5 {[%clk 0:00:41.3]} 13... Bf6 {[%clk 0:00:48.2]} 14. Bxf6
{[%clk 0:00:30.9]} 14... Nxf6 {[%clk 0:00:50.1]} 15. Nxd4 {[%clk 0:00:29.2]}
15... exd4 {[%clk 0:00:42.4]} 16. Nb5 {[%clk 0:00:25.5]} 16... a6 {[%clk
0:00:42.6]} 17. Na3 {[%clk 0:00:25.9]} 17... Nh5 {[%clk 0:00:28.2]} 18. Qg4
{[%clk 0:00:21.1]} 18... Rdg8 {[%clk 0:00:24.4]} 19. Rf3 {[%clk 0:00:20.4]}
19... Rh7 {[%clk 0:00:15.9]} 20. Raf1 {[%clk 0:00:21.5]} 20... Kd7 {[%clk
0:00:16.4]} 21. Nc4 {[%clk 0:00:21.4]} 21... b5 {[%clk 0:00:12.9]} 22. Nd2
{[%clk 0:00:20.9]} 22... Rgg7 {[%clk 0:00:11.7]} 23. e5 {[%clk 0:00:20.3]} 23...
d5 {[%clk 0:00:10.5]} 24. R1f2 {[%clk 0:00:17.8]} 24... Rf7 {[%clk 0:00:11.7]}
25. Nf1 {[%clk 0:00:17.7]} 25... Rxf3 {[%clk 0:00:11.8]} 26. Qxf3 {[%clk
0:00:19.3]} 26... Ng7 {[%clk 0:00:12.2]} 27. Qf7 {[%clk 0:00:19.2]} 27... Nf5
{[%clk 0:00:12.3]} 28. Qxe7+ {[%clk 0:00:19.2]} 28... Kxe7 {[%clk 0:00:12.7]}
29. Rf3 {[%clk 0:00:20.2]} 29... Rh4 {[%clk 0:00:12.1]} 30. h3 {[%clk
0:00:19.7]} 30... c4 {[%clk 0:00:12.2]} 31. Kf2 {[%clk 0:00:20.7]} 31... cxd3
{[%clk 0:00:10.9]} 32. cxd3 {[%clk 0:00:21.7]} 32... a5 {[%clk 0:00:08.2]} 33.
g4 {[%clk 0:00:21]} 33... Ng7 {[%clk 0:00:07.5]} 34. Kg3 {[%clk 0:00:22]} 34...
Rh8 {[%clk 0:00:08.1]} 35. Rf6 {[%clk 0:00:22.6]} 35... Rf8 {[%clk 0:00:05.4]}
36. g5 {[%clk 0:00:20.7]} 36... Nf5+ {[%clk 0:00:05.1]} 37. Kf4 {[%clk 0:00:21]}
37... Rxf6 {[%clk 0:00:05.2]} 38. gxf6+ {[%clk 0:00:21.6]} 38... Kf7 {[%clk
0:00:06.6]} 39. Kg5 {[%clk 0:00:21.4]} 39... Ne3 {[%clk 0:00:06.8]} 40. Ng3
{[%clk 0:00:21.2]} 40... Nd1 {[%clk 0:00:05.9]} 41. b3 {[%clk 0:00:15.5]} 41...
Nb2 {[%clk 0:00:07.6]} 42. Ne2 {[%clk 0:00:16.8]} 42... Nxd3 {[%clk 0:00:08.4]}
43. Nxd4 {[%clk 0:00:18.2]} 43... Nxe5 {[%clk 0:00:09.5]} 44. h4 {[%clk
0:00:17.3]} 44... a4 {[%clk 0:00:09.3]} 45. bxa4 {[%clk 0:00:17.2]} 45... bxa4
{[%clk 0:00:10.2]} 46. a3 {[%clk 0:00:16.2]} 46... Nd7 {[%clk 0:00:08.8]} 47.
Nxe6 {[%clk 0:00:15.9]} 47... Kxe6 {[%clk 0:00:09.3]} 48. Kxg6 {[%clk
0:00:17.2]} 48... Nxf6 {[%clk 0:00:10.8]} 49. Kg5 {[%clk 0:00:17.2]} 49... d4
{[%clk 0:00:12]} 50. Kf4 {[%clk 0:00:17.6]} 50... Kd5 {[%clk 0:00:12.4]} 51. Kf3
{[%clk 0:00:18.4]} 51... Kc4 {[%clk 0:00:13]} 52. Ke2 {[%clk 0:00:19.9]} 52...
d3+ {[%clk 0:00:12.1]} 53. Kd2 {[%clk 0:00:21.1]} 53... Ne4+ {[%clk 0:00:13]}
54. Kd1 {[%clk 0:00:21.6]} 54... d2 {[%clk 0:00:14.4]} 55. h5 {[%clk 0:00:21.5]}
55... Kd3 {[%clk 0:00:14.9]} 56. h6 {[%clk 0:00:21.4]} 56... Nf2# {[%clk
0:00:16.8]} 0-1

[Event "***Titled Tuesday 3|2 Blitz"]
[Site "Chess.com"]
[Date "2017.02.07"]
[Round "4"]
[White "Zlatan56"]
[Black "VMikhalevski"]
[Result "1-0"]
[WhiteElo "2646"]
[BlackElo "2510"]
[TimeControl "180+2"]
[EndTime "14:01:07 PST"]
[Termination "Zlatan56 won by resignation"]

1. Nf3 {[%clk 0:03:02]} 1... d5 {[%clk 0:03:00.1]} 2. g3 {[%clk 0:03:01.4]} 2...
Bg4 {[%clk 0:02:57.4]} 3. Bg2 {[%clk 0:03:02.2]} 3... Nd7 {[%clk 0:02:57.7]} 4.
c4 {[%clk 0:03:01.1]} 4... e6 {[%clk 0:02:57.1]} 5. cxd5 {[%clk 0:02:59.7]} 5...
exd5 {[%clk 0:02:57.5]} 6. O-O {[%clk 0:02:58.4]} 6... Ngf6 {[%clk 0:02:57]} 7.
d3 {[%clk 0:02:57]} 7... c6 {[%clk 0:02:56.6]} 8. h3 {[%clk 0:02:57.1]} 8... Bh5
{[%clk 0:02:49.2]} 9. Nc3 {[%clk 0:02:56.2]} 9... Bc5 {[%clk 0:02:47.7]} 10. Qb3
{[%clk 0:02:51.1]} 10... Bb6 {[%clk 0:02:45.9]} 11. Na4 {[%clk 0:02:51.8]} 11...
O-O {[%clk 0:02:45.7]} 12. Nxb6 {[%clk 0:02:53.2]} 12... axb6 {[%clk 0:02:46.7]}
13. Qc2 {[%clk 0:02:54.6]} 13... b5 {[%clk 0:02:42.6]} 14. b3 {[%clk 0:02:49.7]}
14... Re8 {[%clk 0:02:39.9]} 15. Bb2 {[%clk 0:02:49.4]} 15... Qe7 {[%clk
0:02:38.9]} 16. Rfe1 {[%clk 0:02:39.3]} 16... Qc5 {[%clk 0:02:37.9]} 17. Qd2
{[%clk 0:02:37.5]} 17... Re7 {[%clk 0:02:30.4]} 18. Nd4 {[%clk 0:02:36.2]} 18...
Bg6 {[%clk 0:02:27.4]} 19. a3 {[%clk 0:02:27.7]} 19... Rae8 {[%clk 0:02:26.3]}
20. Kh2 {[%clk 0:02:16.4]} 20... h6 {[%clk 0:02:15.5]} 21. a4 {[%clk 0:02:07.8]}
21... bxa4 {[%clk 0:02:07.9]} 22. bxa4 {[%clk 0:02:06.2]} 22... Nh7 {[%clk
0:01:52.1]} 23. e3 {[%clk 0:02:03.7]} 23... Qa7 {[%clk 0:01:33.4]} 24. f4 {[%clk
0:02:02.6]} 24... Nhf6 {[%clk 0:01:17.3]} 25. a5 {[%clk 0:01:58.8]} 25... Nc5
{[%clk 0:01:14.8]} 26. Bf1 {[%clk 0:01:54.9]} 26... Nfd7 {[%clk 0:01:02.9]} 27.
Ba3 {[%clk 0:01:52.2]} 27... Ra8 {[%clk 0:01:01.4]} 28. a6 {[%clk 0:01:46.9]}
28... Ree8 {[%clk 0:00:45.1]} 29. axb7 {[%clk 0:01:37]} 29... Qxb7 {[%clk
0:00:45.9]} 30. Qc3 {[%clk 0:01:31]} 30... Na4 {[%clk 0:00:44.3]} 31. Qxc6
{[%clk 0:01:27.6]} 31... Qxc6 {[%clk 0:00:43.6]} 32. Nxc6 {[%clk 0:01:29.5]}
32... Nac5 {[%clk 0:00:41.4]} 33. Bxc5 {[%clk 0:01:18]} 33... Nxc5 {[%clk
0:00:38.2]} 34. Rxa8 {[%clk 0:01:03.3]} 34... Rxa8 {[%clk 0:00:38]} 35. f5
{[%clk 0:01:04.3]} 35... Bh7 {[%clk 0:00:36.2]} 36. g4 {[%clk 0:01:02.1]} 36...
g6 {[%clk 0:00:30.6]} 37. Rc1 {[%clk 0:00:53.1]} 37... Nb3 {[%clk 0:00:27.5]}
38. Rc2 {[%clk 0:00:53.4]} 38... gxf5 {[%clk 0:00:26.3]} 39. gxf5 {[%clk
0:00:54.9]} 39... Kg7 {[%clk 0:00:27.4]} 40. Ne7 {[%clk 0:00:51.1]} 40... Ra5
{[%clk 0:00:23.5]} 41. Bg2 {[%clk 0:00:49.3]} 41... Kf6 {[%clk 0:00:21.3]} 42.
Nxd5+ {[%clk 0:00:49]} 42... Kxf5 {[%clk 0:00:21.9]} 43. Rf2+ {[%clk 0:00:44.2]}
43... Kg6 {[%clk 0:00:15.3]} 44. Nf6 {[%clk 0:00:34.4]} 44... Kg7 {[%clk
0:00:15.8]} 45. Nxh7 {[%clk 0:00:30.3]} 45... f5 {[%clk 0:00:16.2]} 46. Rb2
{[%clk 0:00:26.9]} 46... Rb5 {[%clk 0:00:15]} 47. Bc6 {[%clk 0:00:25.4]} 47...
Rc5 {[%clk 0:00:14]} 48. Rxb3 {[%clk 0:00:24.3]} 48... Rxc6 {[%clk 0:00:14.9]}
49. Rb7+ {[%clk 0:00:25]} 49... Kg8 {[%clk 0:00:09.4]} 50. Kg3 {[%clk
0:00:24.7]} 50... Rd6 {[%clk 0:00:09.4]} 51. d4 {[%clk 0:00:24.8]} 51... Re6
{[%clk 0:00:09.3]} 52. Kf4 {[%clk 0:00:25.6]} 52... Re4+ {[%clk 0:00:06.9]} 53.
Kxf5 {[%clk 0:00:25.9]} 53... Rxe3 {[%clk 0:00:08.3]} 54. Nf6+ {[%clk
0:00:21.4]} 54... Kf8 {[%clk 0:00:09.2]} 55. d5 {[%clk 0:00:21.8]} 55... h5
{[%clk 0:00:07.6]} 56. Ne4 {[%clk 0:00:17.8]} 56... Rxh3 {[%clk 0:00:06.1]} 57.
d6 {[%clk 0:00:18.7]} 57... Rd3 {[%clk 0:00:05.5]} 58. Ke6 {[%clk 0:00:19.1]}
58... Re3 {[%clk 0:00:03.5]} 59. d7 {[%clk 0:00:16.9]} 59... Rd3 {[%clk
0:00:04.2]} 60. Nd6 {[%clk 0:00:16.6]} 1-0

[Event "***Titled Tuesday 3|2 Blitz"]
[Site "Chess.com"]
[Date "2017.02.07"]
[Round "4"]
[White "RoelandPruijssers"]
[Black "avto24"]
[Result "1-0"]
[WhiteElo "2480"]
[BlackElo "2371"]
[TimeControl "180+2"]
[EndTime "14:01:13 PST"]
[Termination "RoelandPruijssers won by resignation"]

1. e4 {[%clk 0:03:02]} 1... d5 {[%clk 0:03:02]} 2. exd5 {[%clk 0:03:02.4]} 2...
Qxd5 {[%clk 0:03:01]} 3. Nc3 {[%clk 0:03:02.8]} 3... Qa5 {[%clk 0:03:01.7]} 4.
d4 {[%clk 0:03:03.7]} 4... Nf6 {[%clk 0:02:58.4]} 5. Bd2 {[%clk 0:03:04.5]} 5...
c6 {[%clk 0:02:56]} 6. Bc4 {[%clk 0:03:05]} 6... Qc7 {[%clk 0:02:53.2]} 7. Nf3
{[%clk 0:03:00.9]} 7... Bg4 {[%clk 0:02:53.4]} 8. h3 {[%clk 0:02:50.7]} 8...
Bxf3 {[%clk 0:02:53.6]} 9. Qxf3 {[%clk 0:02:51]} 9... e6 {[%clk 0:02:54.8]} 10.
O-O-O {[%clk 0:02:47.9]} 10... Nbd7 {[%clk 0:02:54.9]} 11. Rhe1 {[%clk
0:02:46.4]} 11... O-O-O {[%clk 0:02:54.5]} 12. g4 {[%clk 0:02:41.5]} 12... Nb6
{[%clk 0:02:52.4]} 13. Bf4 {[%clk 0:02:25.7]} 13... Bd6 {[%clk 0:02:51.2]} 14.
Bxd6 {[%clk 0:02:26.7]} 14... Rxd6 {[%clk 0:02:52.7]} 15. Bb3 {[%clk 0:02:27.6]}
15... Nbd5 {[%clk 0:02:50.7]} 16. g5 {[%clk 0:02:20.2]} 16... Nxc3 {[%clk
0:02:50.4]} 17. Qxc3 {[%clk 0:02:20.9]} 17... Nd5 {[%clk 0:02:47.5]} 18. Qf3
{[%clk 0:02:20.8]} 18... Rhd8 {[%clk 0:02:44.8]} 19. c3 {[%clk 0:02:18.2]} 19...
R6d7 {[%clk 0:02:44.1]} 20. Kb1 {[%clk 0:02:18.9]} 20... Nf4 {[%clk 0:02:40.5]}
21. h4 {[%clk 0:02:17.8]} 21... Kb8 {[%clk 0:02:33]} 22. h5 {[%clk 0:02:14.4]}
22... c5 {[%clk 0:02:34]} 23. dxc5 {[%clk 0:02:05.1]} 23... g6 {[%clk
0:02:27.7]} 24. hxg6 {[%clk 0:01:56.7]} 24... hxg6 {[%clk 0:02:26.6]} 25. Rxd7
{[%clk 0:01:34.7]} 25... Rxd7 {[%clk 0:02:26.9]} 26. Rd1 {[%clk 0:01:36.3]}
26... Rxd1+ {[%clk 0:02:26.3]} 27. Qxd1 {[%clk 0:01:37.3]} 27... a6 {[%clk
0:02:26.6]} 28. Qd4 {[%clk 0:01:35.3]} 28... Ne2 {[%clk 0:02:19.2]} 29. Qe3
{[%clk 0:01:32.6]} 29... Nf4 {[%clk 0:02:18.3]} 30. Bc4 {[%clk 0:01:29.4]} 30...
Kc8 {[%clk 0:02:09.6]} 31. Qd4 {[%clk 0:01:23.8]} 31... Nh5 {[%clk 0:01:59.9]}
32. a4 {[%clk 0:01:13.7]} 32... Qh2 {[%clk 0:01:51.3]} 33. Ka2 {[%clk
0:00:52.3]} 33... Kc7 {[%clk 0:01:42.9]} 34. b4 {[%clk 0:00:46]} 34... Qf4
{[%clk 0:01:30.2]} 35. b5 {[%clk 0:00:27.2]} 35... axb5 {[%clk 0:01:21.4]} 36.
axb5 {[%clk 0:00:29.1]} 36... Qxd4 {[%clk 0:01:11.2]} 37. cxd4 {[%clk 0:00:31]}
37... Nf4 {[%clk 0:01:12.1]} 38. Bf1 {[%clk 0:00:31.9]} 38... Nd5 {[%clk
0:00:56.2]} 39. Kb3 {[%clk 0:00:29.3]} 39... Ne7 {[%clk 0:00:57.4]} 40. Bg2
{[%clk 0:00:25.3]} 40... Nf5 {[%clk 0:00:52.7]} 41. Kc4 {[%clk 0:00:26.2]} 41...
Nh4 {[%clk 0:00:50.2]} 42. Be4 {[%clk 0:00:26.4]} 42... Kc8 {[%clk 0:00:43.8]}
43. d5 {[%clk 0:00:26.8]} 43... Kd7 {[%clk 0:00:40.6]} 44. Kd4 {[%clk
0:00:21.3]} 44... exd5 {[%clk 0:00:26.4]} 45. Kxd5 {[%clk 0:00:22]} 45... Kc7
{[%clk 0:00:20]} 46. Ke5 {[%clk 0:00:22.5]} 46... b6 {[%clk 0:00:21.3]} 47. c6
{[%clk 0:00:22.4]} 47... Kd8 {[%clk 0:00:20.8]} 48. Kf6 {[%clk 0:00:20.5]} 48...
Ke8 {[%clk 0:00:21.6]} 49. Ke5 {[%clk 0:00:09.9]} 49... Ke7 {[%clk 0:00:21.7]}
50. Kd5 {[%clk 0:00:10.9]} 50... Kd8 {[%clk 0:00:18.8]} 51. Kd6 {[%clk
0:00:11.7]} 51... Kc8 {[%clk 0:00:14.1]} 52. Ke7 {[%clk 0:00:12.8]} 52... Kb8
{[%clk 0:00:13.9]} 53. Kd8 {[%clk 0:00:10.9]} 53... Ka7 {[%clk 0:00:13.8]} 54.
c7 {[%clk 0:00:11]} 54... Nf5 {[%clk 0:00:15.7]} 55. Bxf5 {[%clk 0:00:10.9]}
55... f6 {[%clk 0:00:15]} 56. c8=Q {[%clk 0:00:11.4]} 56... fxg5 {[%clk
0:00:16.1]} 57. Kc7 {[%clk 0:00:11.5]} 1-0